[Event "Late-Titled-Tuesday-Blitz-April-30-2024"]
[Site "Chess.com"]
[Date "2024.04.30"]
[Round "1"]
[White "Navyblue1"]
[Black "Dhaydon19"]
[Result "0-1"]
[WhiteElo "2244"]
[BlackElo "2597"]
[TimeControl "180+1"]
[EndTime "14:06:01 PDT"]
[Termination "Dhaydon19 won by resignation"]

1. d4 {[%clk 0:02:53.1]} 1... Nf6 {[%clk 0:02:59.2]} 2. c4 {[%clk 0:02:53.5]}
2... e6 {[%clk 0:02:58.8]} 3. Nf3 {[%clk 0:02:52.1]} 3... Bb4+ {[%clk
0:02:58.5]} 4. Bd2 {[%clk 0:02:47.1]} 4... Qe7 {[%clk 0:02:57]} 5. Nc3 {[%clk
0:02:44]} 5... b6 {[%clk 0:02:50.9]} 6. g3 {[%clk 0:02:43.8]} 6... Bb7 {[%clk
0:02:50.4]} 7. Bg2 {[%clk 0:02:44.3]} 7... O-O {[%clk 0:02:46.9]} 8. O-O {[%clk
0:02:43.4]} 8... d5 {[%clk 0:02:44.6]} 9. Ne5 {[%clk 0:02:35.3]} 9... c5 {[%clk
0:02:43.5]} 10. dxc5 {[%clk 0:02:31.3]} 10... Bxc5 {[%clk 0:02:36.7]} 11. cxd5
{[%clk 0:02:25.6]} 11... exd5 {[%clk 0:02:32]} 12. Nd3 {[%clk 0:02:25.2]} 12...
Nbd7 {[%clk 0:02:25.1]} 13. Rc1 {[%clk 0:02:21.4]} 13... Rac8 {[%clk 0:02:15.9]}
14. a3 {[%clk 0:01:50.5]} 14... Ne4 {[%clk 0:02:12.6]} 15. Nxc5 {[%clk
0:01:34.7]} 15... Ndxc5 {[%clk 0:02:05]} 16. Be3 {[%clk 0:01:24.7]} 16... Rfd8
{[%clk 0:01:59.7]} 17. Bd4 {[%clk 0:01:21.8]} 17... Ne6 {[%clk 0:01:58.4]} 18.
Qd3 {[%clk 0:01:14]} 18... Nxc3 {[%clk 0:01:56.5]} 19. Rxc3 {[%clk 0:01:12.3]}
19... Rxc3 {[%clk 0:01:56.1]} 20. Qxc3 {[%clk 0:01:10.5]} 20... Nxd4 {[%clk
0:01:52.4]} 21. Qxd4 {[%clk 0:01:10.6]} 21... Qxe2 {[%clk 0:01:53]} 22. Rd1
{[%clk 0:01:04.9]} 22... g6 {[%clk 0:01:49.1]} 23. h4 {[%clk 0:00:59.7]} 23...
h5 {[%clk 0:01:46.8]} 24. Rc1 {[%clk 0:00:53.1]} 24... Qe7 {[%clk 0:01:43.7]}
25. Rc3 {[%clk 0:00:47.6]} 25... Rd6 {[%clk 0:01:41.5]} 26. Kh2 {[%clk
0:00:42.3]} 26... Re6 {[%clk 0:01:32.8]} 27. Qf4 {[%clk 0:00:38]} 27... Bc6
{[%clk 0:01:23.9]} 28. Qb8+ {[%clk 0:00:32.9]} 28... Kg7 {[%clk 0:01:22.1]} 29.
Qc8 {[%clk 0:00:24.2]} 29... Qd6 {[%clk 0:01:10.4]} 30. Qa6 {[%clk 0:00:23]}
30... Rf6 {[%clk 0:01:04]} 31. f4 {[%clk 0:00:19.5]} 31... Qd7 {[%clk
0:01:00.7]} 32. Qxa7 {[%clk 0:00:18.7]} 32... Qxa7 {[%clk 0:00:59.8]} 0-1

[Event "Late-Titled-Tuesday-Blitz-April-30-2024"]
[Site "Chess.com"]
[Date "2024.04.30"]
[Round "1"]
[White "brother-bear"]
[Black "dennisodessa"]
[Result "0-1"]
[WhiteElo "2054"]
[BlackElo "2553"]
[TimeControl "180+1"]
[EndTime "14:06:11 PDT"]
[Termination "dennisodessa won on time"]

1. d4 {[%clk 0:02:58.2]} 1... Nf6 {[%clk 0:03:00.2]} 2. c4 {[%clk 0:02:57.8]}
2... e6 {[%clk 0:03:00.6]} 3. Nf3 {[%clk 0:02:57]} 3... Bb4+ {[%clk 0:03:01.2]}
4. Bd2 {[%clk 0:02:56.5]} 4... a5 {[%clk 0:03:01.9]} 5. g3 {[%clk 0:02:55.2]}
5... b6 {[%clk 0:03:02.6]} 6. Bg2 {[%clk 0:02:55.5]} 6... Bb7 {[%clk 0:03:03.3]}
7. O-O {[%clk 0:02:55.6]} 7... O-O {[%clk 0:03:04]} 8. Bg5 {[%clk 0:02:47.7]}
8... Be7 {[%clk 0:03:04.2]} 9. Nc3 {[%clk 0:02:45.6]} 9... Ne4 {[%clk
0:03:03.5]} 10. Nxe4 {[%clk 0:02:43.4]} 10... Bxe4 {[%clk 0:03:03.5]} 11. Bxe7
{[%clk 0:02:42.3]} 11... Qxe7 {[%clk 0:03:04.4]} 12. Rc1 {[%clk 0:02:10]} 12...
d6 {[%clk 0:03:02.8]} 13. Qd2 {[%clk 0:02:02.5]} 13... Nd7 {[%clk 0:03:02.4]}
14. d5 {[%clk 0:01:55.8]} 14... e5 {[%clk 0:02:55.8]} 15. Nh4 {[%clk 0:01:43.3]}
15... Bxg2 {[%clk 0:02:43.6]} 16. Nxg2 {[%clk 0:01:36.9]} 16... f5 {[%clk
0:02:44.5]} 17. f4 {[%clk 0:01:28]} 17... Rae8 {[%clk 0:02:39.9]} 18. Rce1
{[%clk 0:01:21.6]} 18... Nc5 {[%clk 0:02:39.9]} 19. e3 {[%clk 0:01:10.8]} 19...
Qf6 {[%clk 0:02:14.1]} 20. Nh4 {[%clk 0:01:00.8]} 20... g5 {[%clk 0:01:49.9]}
21. Nf3 {[%clk 0:00:33.7]} 21... exf4 {[%clk 0:01:33.8]} 22. exf4 {[%clk
0:00:32.9]} 22... gxf4 {[%clk 0:01:27.6]} 23. Qxf4 {[%clk 0:00:31.8]} 23... Nd3
{[%clk 0:01:13.1]} 24. Rxe8 {[%clk 0:00:25.3]} 24... Nxf4 {[%clk 0:01:12.5]} 25.
Rxf8+ {[%clk 0:00:24.8]} 25... Kxf8 {[%clk 0:01:13.4]} 26. gxf4 {[%clk
0:00:24.9]} 26... Qxb2 {[%clk 0:01:14.1]} 27. Ng5 {[%clk 0:00:24.5]} 27... Qxa2
{[%clk 0:01:10.7]} 28. Ne6+ {[%clk 0:00:18.5]} 28... Kf7 {[%clk 0:01:07.9]} 29.
Nxc7 {[%clk 0:00:19.1]} 29... Qxc4 {[%clk 0:01:07.4]} 0-1

[Event "Late-Titled-Tuesday-Blitz-April-30-2024"]
[Site "Chess.com"]
[Date "2024.04.30"]
[Round "1"]
[White "Crazy_girl99"]
[Black "MNyuyu"]
[Result "1-0"]
[WhiteElo "2659"]
[BlackElo "2360"]
[TimeControl "180+1"]
[EndTime "14:06:14 PDT"]
[Termination "Crazy_girl99 won by resignation"]

1. e4 {[%clk 0:02:21.7]} 1... d5 {[%clk 0:02:58.3]} 2. exd5 {[%clk 0:02:19.6]}
2... Qxd5 {[%clk 0:02:59.2]} 3. Nf3 {[%clk 0:02:15.9]} 3... Bg4 {[%clk 0:02:58]}
4. Be2 {[%clk 0:02:15.4]} 4... c6 {[%clk 0:02:57.4]} 5. Nc3 {[%clk 0:02:14.2]}
5... Qd6 {[%clk 0:02:56.9]} 6. d4 {[%clk 0:02:10.4]} 6... e6 {[%clk 0:02:56.9]}
7. O-O {[%clk 0:02:08]} 7... Nf6 {[%clk 0:02:57.4]} 8. Be3 {[%clk 0:02:02.8]}
8... Nbd7 {[%clk 0:02:56.9]} 9. h3 {[%clk 0:01:50]} 9... Bh5 {[%clk 0:02:51.3]}
10. Nd2 {[%clk 0:01:47.6]} 10... Bg6 {[%clk 0:02:50.6]} 11. Nc4 {[%clk
0:01:44.9]} 11... Qc7 {[%clk 0:02:50.7]} 12. Qd2 {[%clk 0:01:44.2]} 12... Be7
{[%clk 0:02:38.4]} 13. Bf4 {[%clk 0:01:43.3]} 13... Qd8 {[%clk 0:02:35]} 14. Bf3
{[%clk 0:01:42]} 14... O-O {[%clk 0:02:33.8]} 15. Rad1 {[%clk 0:01:41.5]} 15...
Nd5 {[%clk 0:02:33.1]} 16. Nxd5 {[%clk 0:01:37.8]} 16... cxd5 {[%clk 0:02:32.7]}
17. Ne5 {[%clk 0:01:33.5]} 17... Nxe5 {[%clk 0:02:32.8]} 18. Bxe5 {[%clk
0:01:33.1]} 18... Bf6 {[%clk 0:02:31.2]} 19. Rfe1 {[%clk 0:01:32.8]} 19... Bxe5
{[%clk 0:02:30.6]} 20. Rxe5 {[%clk 0:01:32.7]} 20... b5 {[%clk 0:02:30.6]} 21.
c3 {[%clk 0:01:32.5]} 21... a5 {[%clk 0:02:30.1]} 22. a3 {[%clk 0:01:32.8]}
22... Rb8 {[%clk 0:02:29.6]} 23. h4 {[%clk 0:01:32.9]} 23... h6 {[%clk
0:02:27.9]} 24. h5 {[%clk 0:01:33.3]} 24... Bh7 {[%clk 0:02:27.4]} 25. Rde1
{[%clk 0:01:30.4]} 25... b4 {[%clk 0:02:27.3]} 26. cxb4 {[%clk 0:01:23.1]} 26...
axb4 {[%clk 0:02:25.9]} 27. a4 {[%clk 0:01:23.5]} 27... b3 {[%clk 0:02:23.2]}
28. R5e3 {[%clk 0:01:23.1]} 28... Qd7 {[%clk 0:02:19.8]} 29. a5 {[%clk
0:01:22.1]} 29... Rfc8 {[%clk 0:02:17.2]} 30. Bd1 {[%clk 0:01:16]} 30... Bc2
{[%clk 0:02:15.5]} 31. Rg3 {[%clk 0:01:09.9]} 31... Kf8 {[%clk 0:02:07.1]} 32.
Rc3 {[%clk 0:01:06.3]} 32... Rxc3 {[%clk 0:02:02.8]} 33. Qxc3 {[%clk 0:01:07.2]}
33... Rc8 {[%clk 0:01:59.4]} 34. Qb4+ {[%clk 0:01:07.3]} 34... Kg8 {[%clk
0:01:55.4]} 35. a6 {[%clk 0:01:05.4]} 35... Qa7 {[%clk 0:01:52]} 36. Be2 {[%clk
0:01:05.5]} 36... Rb8 {[%clk 0:01:40.4]} 37. Qc5 {[%clk 0:01:04.9]} 37... Qxc5
{[%clk 0:01:30.8]} 38. dxc5 {[%clk 0:01:05.8]} 38... d4 {[%clk 0:01:31.1]} 39.
Bf3 {[%clk 0:01:00.7]} 39... d3 {[%clk 0:01:25.2]} 40. a7 {[%clk 0:01:00.3]}
40... Rd8 {[%clk 0:01:20.2]} 41. Ra1 {[%clk 0:00:59.5]} 41... f5 {[%clk
0:00:53.3]} 42. a8=Q {[%clk 0:00:59.4]} 42... Rxa8 {[%clk 0:00:53.2]} 43. Rxa8+
{[%clk 0:00:59.1]} 43... Kf7 {[%clk 0:00:53.5]} 44. c6 {[%clk 0:00:58.9]} 44...
e5 {[%clk 0:00:52.9]} 45. c7 {[%clk 0:00:58.8]} 45... e4 {[%clk 0:00:53.3]} 46.
c8=Q {[%clk 0:00:58.8]} 46... exf3 {[%clk 0:00:53.6]} 47. Qe8+ {[%clk
0:00:57.8]} 47... Kf6 {[%clk 0:00:53.5]} 48. Ra6+ {[%clk 0:00:54.1]} 1-0

[Event "Late-Titled-Tuesday-Blitz-April-30-2024"]
[Site "Chess.com"]
[Date "2024.04.30"]
[Round "1"]
[White "DonJuanEGenaro"]
[Black "KnobbedHornbill"]
[Result "0-1"]
[WhiteElo "2049"]
[BlackElo "2550"]
[TimeControl "180+1"]
[EndTime "14:06:16 PDT"]
[Termination "KnobbedHornbill won by resignation"]

1. d4 {[%clk 0:02:47.7]} 1... d5 {[%clk 0:02:59.6]} 2. Nf3 {[%clk 0:02:48.1]}
2... Nf6 {[%clk 0:02:59.4]} 3. c4 {[%clk 0:02:48.5]} 3... c6 {[%clk 0:02:59.6]}
4. cxd5 {[%clk 0:02:48.5]} 4... cxd5 {[%clk 0:03:00.5]} 5. Nc3 {[%clk
0:02:48.3]} 5... Nc6 {[%clk 0:03:01.4]} 6. Bf4 {[%clk 0:02:46.9]} 6... Bf5
{[%clk 0:03:01.4]} 7. e3 {[%clk 0:02:46.6]} 7... e6 {[%clk 0:03:01.2]} 8. Bb5
{[%clk 0:02:44.4]} 8... Nd7 {[%clk 0:02:58]} 9. O-O {[%clk 0:02:41.6]} 9... Be7
{[%clk 0:02:58.1]} 10. a3 {[%clk 0:02:40.6]} 10... O-O {[%clk 0:02:57.5]} 11. b4
{[%clk 0:02:40.1]} 11... Nb6 {[%clk 0:02:57.1]} 12. Qb3 {[%clk 0:02:34.5]} 12...
Rc8 {[%clk 0:02:54.4]} 13. Rfc1 {[%clk 0:02:32.9]} 13... a6 {[%clk 0:02:53.5]}
14. Be2 {[%clk 0:02:27.5]} 14... h6 {[%clk 0:02:47.7]} 15. Ne5 {[%clk
0:02:21.7]} 15... Nxe5 {[%clk 0:02:44.2]} 16. Bxe5 {[%clk 0:02:21.5]} 16... Nc4
{[%clk 0:02:44.4]} 17. Bxc4 {[%clk 0:02:20.5]} 17... dxc4 {[%clk 0:02:41.3]} 18.
Qa4 {[%clk 0:02:11.7]} 18... Bd3 {[%clk 0:02:32.7]} 19. Ra2 {[%clk 0:02:03.2]}
19... Qb6 {[%clk 0:02:09.8]} 20. Rd2 {[%clk 0:01:49.6]} 20... Rfd8 {[%clk
0:02:09.1]} 21. Nd1 {[%clk 0:01:26.2]} 21... Qb5 {[%clk 0:02:02.8]} 22. Nc3
{[%clk 0:01:19.4]} 22... Qb6 {[%clk 0:01:59.3]} 23. Qd1 {[%clk 0:01:17.9]} 23...
a5 {[%clk 0:01:56.3]} 24. Na4 {[%clk 0:01:04.5]} 24... Qa7 {[%clk 0:01:40.9]}
25. Nc5 {[%clk 0:01:03.6]} 25... Bg6 {[%clk 0:01:37.7]} 26. Qa4 {[%clk
0:00:46.3]} 26... b6 {[%clk 0:01:35.5]} 27. Rxc4 {[%clk 0:00:32.9]} 27... bxc5
{[%clk 0:01:31]} 28. bxc5 {[%clk 0:00:32.5]} 28... Be4 {[%clk 0:01:28.2]} 29. c6
{[%clk 0:00:26.2]} 29... Qb6 {[%clk 0:01:21.2]} 30. c7 {[%clk 0:00:23]} 30...
Rd7 {[%clk 0:00:55.2]} 31. Qxd7 {[%clk 0:00:17.6]} 31... Qb1+ {[%clk 0:00:54.7]}
0-1

[Event "Late-Titled-Tuesday-Blitz-April-30-2024"]
[Site "Chess.com"]
[Date "2024.04.30"]
[Round "1"]
[White "dasatcu90"]
[Black "yaguigor"]
[Result "1/2-1/2"]
[WhiteElo "2211"]
[BlackElo "2571"]
[TimeControl "180+1"]
[EndTime "14:06:18 PDT"]
[Termination "Game drawn by stalemate"]

1. d4 {[%clk 0:03:00.4]} 1... Nf6 {[%clk 0:02:57.8]} 2. Nf3 {[%clk 0:03:00.8]}
2... d5 {[%clk 0:02:57.2]} 3. e3 {[%clk 0:03:01]} 3... c5 {[%clk 0:02:56.7]} 4.
c4 {[%clk 0:02:59.8]} 4... cxd4 {[%clk 0:02:54.4]} 5. exd4 {[%clk 0:03:00.7]}
5... Nc6 {[%clk 0:02:54.4]} 6. Nc3 {[%clk 0:03:00.5]} 6... Bg4 {[%clk
0:02:53.4]} 7. cxd5 {[%clk 0:02:59.9]} 7... Nxd5 {[%clk 0:02:52.5]} 8. Qb3
{[%clk 0:03:00.5]} 8... Bxf3 {[%clk 0:02:52.4]} 9. gxf3 {[%clk 0:03:01.4]} 9...
e6 {[%clk 0:02:52.5]} 10. Qxb7 {[%clk 0:03:00.2]} 10... Nxd4 {[%clk 0:02:52.5]}
11. Bb5+ {[%clk 0:03:00.6]} 11... Nxb5 {[%clk 0:02:52.6]} 12. Qc6+ {[%clk
0:03:01.1]} 12... Ke7 {[%clk 0:02:52.7]} 13. Qxb5 {[%clk 0:02:57.4]} 13... Qd7
{[%clk 0:02:52.6]} 14. Nxd5+ {[%clk 0:02:56.2]} 14... Qxd5 {[%clk 0:02:52.8]}
15. Qxd5 {[%clk 0:02:56.8]} 15... exd5 {[%clk 0:02:53.3]} 16. Be3 {[%clk
0:02:57.4]} 16... Ke6 {[%clk 0:02:52]} 17. O-O-O {[%clk 0:02:48.8]} 17... Bb4
{[%clk 0:02:51.3]} 18. a3 {[%clk 0:02:47.5]} 18... Rhc8+ {[%clk 0:02:50.6]} 19.
Kb1 {[%clk 0:02:47.4]} 19... Bc5 {[%clk 0:02:50.7]} 20. Rhe1 {[%clk 0:02:46]}
20... Bxe3 {[%clk 0:02:45.9]} 21. fxe3 {[%clk 0:02:39]} 21... Rc4 {[%clk
0:02:40.6]} 22. Rd3 {[%clk 0:02:36.6]} 22... Rh4 {[%clk 0:02:31.8]} 23. Re2
{[%clk 0:02:36.9]} 23... Rc8 {[%clk 0:02:25.6]} 24. Red2 {[%clk 0:02:36.8]}
24... Rc5 {[%clk 0:02:18.5]} 25. b4 {[%clk 0:02:34.5]} 25... Rb5 {[%clk
0:02:17.8]} 26. Ka2 {[%clk 0:02:32.7]} 26... a5 {[%clk 0:02:17.6]} 27. bxa5
{[%clk 0:02:19.8]} 27... Ra4 {[%clk 0:02:12.6]} 28. Rd4 {[%clk 0:02:16.4]} 28...
Raxa5 {[%clk 0:02:06.5]} 29. a4 {[%clk 0:02:10.9]} 29... Rc5 {[%clk 0:02:05]}
30. Kb3 {[%clk 0:02:10.3]} 30... Rc6 {[%clk 0:01:55.8]} 31. Rb4 {[%clk
0:02:06.2]} 31... Rac5 {[%clk 0:01:55.1]} 32. Rd3 {[%clk 0:02:02]} 32... Rc1
{[%clk 0:01:54.5]} 33. h4 {[%clk 0:02:00.6]} 33... h5 {[%clk 0:01:41.5]} 34. Rb5
{[%clk 0:01:59.1]} 34... Rb1+ {[%clk 0:01:36.1]} 35. Ka3 {[%clk 0:01:56.9]}
35... Rxb5 {[%clk 0:01:30.8]} 36. axb5 {[%clk 0:01:57.8]} 36... Rc4 {[%clk
0:01:30.5]} 37. b6 {[%clk 0:01:54.1]} 37... Kd6 {[%clk 0:01:16.2]} 38. e4 {[%clk
0:01:52.5]} 38... Kc6 {[%clk 0:01:13.2]} 39. Rxd5 {[%clk 0:01:50.2]} 39... Rc3+
{[%clk 0:01:04.8]} 40. Kb4 {[%clk 0:01:50.1]} 40... Rxf3 {[%clk 0:01:05.1]} 41.
b7 {[%clk 0:01:41.9]} 41... Kxb7 {[%clk 0:01:04.2]} 42. Rxh5 {[%clk 0:01:42]}
42... Rf4 {[%clk 0:01:02.5]} 43. Re5 {[%clk 0:01:40.3]} 43... Kc6 {[%clk
0:00:59.2]} 44. h5 {[%clk 0:01:38.5]} 44... Kd6 {[%clk 0:00:55]} 45. Re8 {[%clk
0:01:23.8]} 45... f5 {[%clk 0:00:53.5]} 46. Kc3 {[%clk 0:01:21.4]} 46... Rxe4
{[%clk 0:00:51.7]} 47. Rxe4 {[%clk 0:01:20.1]} 47... fxe4 {[%clk 0:00:50.5]} 48.
Kd4 {[%clk 0:01:20.8]} 48... e3 {[%clk 0:00:49.9]} 49. Kxe3 {[%clk 0:01:20.9]}
49... Ke5 {[%clk 0:00:50.4]} 50. h6 {[%clk 0:01:21]} 50... gxh6 {[%clk
0:00:47.6]} 51. Kf3 {[%clk 0:01:21.1]} 51... Kf5 {[%clk 0:00:47.7]} 52. Kg3
{[%clk 0:01:21.5]} 52... Kg5 {[%clk 0:00:48]} 53. Kh3 {[%clk 0:01:22]} 53... h5
{[%clk 0:00:48.3]} 54. Kg3 {[%clk 0:01:22.2]} 54... h4+ {[%clk 0:00:49]} 55. Kh3
{[%clk 0:01:23.1]} 55... Kh5 {[%clk 0:00:49.4]} 56. Kh2 {[%clk 0:01:23.3]} 56...
Kg4 {[%clk 0:00:50.3]} 57. Kg2 {[%clk 0:01:24.2]} 57... h3+ {[%clk 0:00:50.6]}
58. Kh2 {[%clk 0:01:25.1]} 58... Kh4 {[%clk 0:00:50.9]} 59. Kh1 {[%clk
0:01:25.4]} 59... Kg3 {[%clk 0:00:51.8]} 60. Kg1 {[%clk 0:01:25.6]} 60... h2+
{[%clk 0:00:52.5]} 61. Kh1 {[%clk 0:01:26.5]} 61... Kh3 {[%clk 0:00:53.2]}
1/2-1/2

[Event "Late-Titled-Tuesday-Blitz-April-30-2024"]
[Site "Chess.com"]
[Date "2024.04.30"]
[Round "1"]
[White "vanyakuba"]
[Black "lamomiajunior"]
[Result "0-1"]
[WhiteElo "2428"]
[BlackElo "2753"]
[TimeControl "180+1"]
[EndTime "14:06:26 PDT"]
[Termination "lamomiajunior won by resignation"]

1. e4 {[%clk 0:03:00.9]} 1... c5 {[%clk 0:03:00.1]} 2. c3 {[%clk 0:03:00.9]}
2... Nf6 {[%clk 0:02:59.1]} 3. e5 {[%clk 0:03:00.9]} 3... Nd5 {[%clk 0:02:59.7]}
4. d4 {[%clk 0:03:01.5]} 4... Nc6 {[%clk 0:02:57.8]} 5. f4 {[%clk 0:02:57.6]}
5... cxd4 {[%clk 0:02:56.6]} 6. cxd4 {[%clk 0:02:57.6]} 6... d6 {[%clk
0:02:57.2]} 7. Nc3 {[%clk 0:02:55.7]} 7... dxe5 {[%clk 0:02:48.4]} 8. dxe5
{[%clk 0:02:51.2]} 8... Nxc3 {[%clk 0:02:46.6]} 9. Qxd8+ {[%clk 0:02:51]} 9...
Kxd8 {[%clk 0:02:43.8]} 10. bxc3 {[%clk 0:02:51.9]} 10... Kc7 {[%clk 0:02:42.2]}
11. Be3 {[%clk 0:02:50.6]} 11... g6 {[%clk 0:02:31.4]} 12. Nf3 {[%clk
0:02:47.7]} 12... f6 {[%clk 0:02:25.9]} 13. O-O-O {[%clk 0:02:22.8]} 13... Be6
{[%clk 0:02:18.3]} 14. Kb2 {[%clk 0:02:21.2]} 14... fxe5 {[%clk 0:02:14.4]} 15.
Nxe5 {[%clk 0:02:02.6]} 15... Bg7 {[%clk 0:02:08.7]} 16. Nxc6 {[%clk 0:01:55.9]}
16... bxc6 {[%clk 0:02:06.6]} 17. Bd4 {[%clk 0:01:49.8]} 17... Rab8+ {[%clk
0:02:05.7]} 18. Ka1 {[%clk 0:01:49.6]} 18... Bxd4 {[%clk 0:02:01.5]} 19. Rxd4
{[%clk 0:01:32.7]} 19... Rhd8 {[%clk 0:02:00.2]} 20. Be2 {[%clk 0:01:25.7]}
20... Rxd4 {[%clk 0:01:51.2]} 21. cxd4 {[%clk 0:01:26.6]} 21... Bd5 {[%clk
0:01:51.2]} 22. Rb1 {[%clk 0:01:06.9]} 22... Rxb1+ {[%clk 0:01:44.1]} 23. Kxb1
{[%clk 0:01:07.8]} 23... Bxg2 {[%clk 0:01:44.2]} 24. Kb2 {[%clk 0:01:07.9]}
24... Kd6 {[%clk 0:01:44]} 25. Kc3 {[%clk 0:01:08.1]} 25... c5 {[%clk
0:01:43.6]} 26. Bg4 {[%clk 0:00:50.5]} 26... Be4 {[%clk 0:01:35.1]} 27. a3
{[%clk 0:00:49.6]} 27... Kd5 {[%clk 0:01:28.9]} 28. dxc5 {[%clk 0:00:48.5]}
28... Kxc5 {[%clk 0:01:29.8]} 29. Be6 {[%clk 0:00:48.7]} 29... Bd5 {[%clk
0:01:22.9]} 30. Bd7 {[%clk 0:00:48.6]} 30... Kd6 {[%clk 0:01:16.2]} 31. Be8
{[%clk 0:00:48.7]} 31... e5 {[%clk 0:01:16.1]} 32. fxe5+ {[%clk 0:00:44.3]}
32... Kxe5 {[%clk 0:01:17]} 33. Kb4 {[%clk 0:00:34.7]} 33... Kf4 {[%clk
0:01:16.5]} 34. Ka5 {[%clk 0:00:34.2]} 34... Bb7 {[%clk 0:01:15]} 35. Bb5 {[%clk
0:00:19]} 35... Kf3 {[%clk 0:01:09.3]} 36. Ba6 {[%clk 0:00:18.4]} 36... Bd5
{[%clk 0:01:04.9]} 37. Bc8 {[%clk 0:00:17.3]} 37... Kg2 {[%clk 0:01:02.9]} 38.
h4 {[%clk 0:00:14.2]} 38... Kg3 {[%clk 0:01:02.1]} 39. h5 {[%clk 0:00:12.9]}
39... gxh5 {[%clk 0:01:01.6]} 40. Ka6 {[%clk 0:00:13.2]} 40... h4 {[%clk
0:01:01.6]} 41. Kxa7 {[%clk 0:00:13.9]} 41... h3 {[%clk 0:01:01.9]} 0-1

[Event "Late-Titled-Tuesday-Blitz-April-30-2024"]
[Site "Chess.com"]
[Date "2024.04.30"]
[Round "1"]
[White "hammahamma"]
[Black "xberli"]
[Result "0-1"]
[WhiteElo "2294"]
[BlackElo "2622"]
[TimeControl "180+1"]
[EndTime "14:06:27 PDT"]
[Termination "xberli won by resignation"]

1. e4 {[%clk 0:02:59.1]} 1... c5 {[%clk 0:02:58.6]} 2. b3 {[%clk 0:02:56]} 2...
Nf6 {[%clk 0:02:54.5]} 3. Nc3 {[%clk 0:02:54.5]} 3... Nc6 {[%clk 0:02:48.6]} 4.
Bb2 {[%clk 0:02:54.3]} 4... g6 {[%clk 0:02:48.8]} 5. e5 {[%clk 0:02:50.1]} 5...
Nxe5 {[%clk 0:02:45.4]} 6. Qe2 {[%clk 0:02:45.4]} 6... d6 {[%clk 0:02:29.2]} 7.
O-O-O {[%clk 0:02:40.6]} 7... Bg7 {[%clk 0:02:27]} 8. h3 {[%clk 0:02:40.2]} 8...
O-O {[%clk 0:02:26.4]} 9. f4 {[%clk 0:02:38.9]} 9... Nc6 {[%clk 0:02:26.5]} 10.
g4 {[%clk 0:02:39]} 10... Nd4 {[%clk 0:02:26.5]} 11. Qf2 {[%clk 0:02:37.2]}
11... Qa5 {[%clk 0:02:25]} 12. Kb1 {[%clk 0:02:29.8]} 12... b5 {[%clk
0:02:22.3]} 13. Bg2 {[%clk 0:02:11.4]} 13... Rb8 {[%clk 0:02:21.7]} 14. Nf3
{[%clk 0:02:11.1]} 14... Bb7 {[%clk 0:02:15.2]} 15. Nxd4 {[%clk 0:02:00.5]}
15... cxd4 {[%clk 0:02:16.1]} 16. Ne2 {[%clk 0:01:53.4]} 16... Ne4 {[%clk
0:02:12.7]} 17. Bxe4 {[%clk 0:01:40.3]} 17... Bxe4 {[%clk 0:02:11.2]} 18. Nxd4
{[%clk 0:01:29]} 18... Rfc8 {[%clk 0:01:58.8]} 19. Rhe1 {[%clk 0:01:03.9]} 19...
Bxc2+ {[%clk 0:01:48.6]} 20. Nxc2 {[%clk 0:00:57.9]} 20... Rxc2 {[%clk
0:01:49.5]} 21. Kxc2 {[%clk 0:00:51.7]} 21... Qxa2 {[%clk 0:01:49.6]} 22. Rb1
{[%clk 0:00:33.4]} 22... Bxb2 {[%clk 0:01:48.1]} 23. Kd3 {[%clk 0:00:18.5]}
23... Qxb3+ {[%clk 0:01:44.5]} 24. Ke2 {[%clk 0:00:18.6]} 24... Qc4+ {[%clk
0:01:43.5]} 25. Kf3 {[%clk 0:00:18.4]} 25... Qd5+ {[%clk 0:01:39.3]} 26. Kg3
{[%clk 0:00:17.4]} 26... Bf6 {[%clk 0:01:34.2]} 27. Qf3 {[%clk 0:00:17]} 27...
Qxd2 {[%clk 0:01:29.4]} 28. Re2 {[%clk 0:00:16.4]} 28... Qd4 {[%clk 0:01:25.9]}
29. Reb2 {[%clk 0:00:16.2]} 29... a6 {[%clk 0:01:24.1]} 30. Rb4 {[%clk
0:00:15.1]} 30... Qc5 {[%clk 0:01:22.5]} 31. R4b3 {[%clk 0:00:14.9]} 31... h6
{[%clk 0:01:21.1]} 32. Qe4 {[%clk 0:00:14.5]} 32... a5 {[%clk 0:01:17.1]} 33.
Qd3 {[%clk 0:00:14.2]} 33... b4 {[%clk 0:01:16]} 34. Qd2 {[%clk 0:00:12.8]}
34... Kg7 {[%clk 0:01:13]} 35. Rc1 {[%clk 0:00:12.6]} 35... Qb5 {[%clk 0:01:11]}
36. g5 {[%clk 0:00:12.3]} 36... hxg5 {[%clk 0:01:10.6]} 37. fxg5 {[%clk
0:00:13.2]} 37... Bxg5 {[%clk 0:01:10.7]} 38. Qd4+ {[%clk 0:00:12.8]} 38... Bf6
{[%clk 0:01:10.8]} 39. Qc4 {[%clk 0:00:12.3]} 39... Qg5+ {[%clk 0:01:08.4]} 40.
Kf2 {[%clk 0:00:09.9]} 40... Be5 {[%clk 0:01:06.9]} 41. Qd3 {[%clk 0:00:08.3]}
41... Qxc1 {[%clk 0:01:05.8]} 0-1